[Event "Early-Titled-Tuesday-Blitz-March-05-2024"]
[Site "Chess.com"]
[Date "2024.03.05"]
[Round "4"]
[White "xasid81"]
[Black "Matols"]
[Result "1-0"]
[WhiteElo "2577"]
[BlackElo "2394"]
[TimeControl "180+1"]
[EndTime "8:41:08 PST"]
[Termination "xasid81 won by resignation"]

1. e4 {[%clk 0:02:54.6]} 1... c6 {[%clk 0:02:59.9]} 2. d4 {[%clk 0:02:54.3]}
2... d5 {[%clk 0:03:00.2]} 3. exd5 {[%clk 0:02:53.5]} 3... cxd5 {[%clk
0:03:01.1]} 4. Nf3 {[%clk 0:02:54.1]} 4... Nf6 {[%clk 0:03:00.4]} 5. Ne5 {[%clk
0:02:54]} 5... Nc6 {[%clk 0:02:54.4]} 6. Bb5 {[%clk 0:02:53]} 6... Bd7 {[%clk
0:02:53.9]} 7. Nxd7 {[%clk 0:02:51.1]} 7... Qxd7 {[%clk 0:02:54.8]} 8. O-O
{[%clk 0:02:49.5]} 8... e6 {[%clk 0:02:54.5]} 9. c3 {[%clk 0:02:49.3]} 9... Bd6
{[%clk 0:02:53.6]} 10. Nd2 {[%clk 0:02:48.4]} 10... O-O {[%clk 0:02:49.8]} 11.
Nf3 {[%clk 0:02:48.4]} 11... Qc7 {[%clk 0:02:49.3]} 12. h3 {[%clk 0:02:47.8]}
12... Ne4 {[%clk 0:02:44.6]} 13. Bd3 {[%clk 0:02:45.4]} 13... f5 {[%clk
0:02:31.9]} 14. Qe2 {[%clk 0:02:40.4]} 14... Rae8 {[%clk 0:02:29.5]} 15. Re1
{[%clk 0:02:28.7]} 15... Kh8 {[%clk 0:02:10.2]} 16. Ng5 {[%clk 0:02:26.4]} 16...
Bh2+ {[%clk 0:02:03.2]} 17. Kh1 {[%clk 0:02:17.6]} 17... Bf4 {[%clk 0:01:48.1]}
18. Nf3 {[%clk 0:02:10.9]} 18... Bg3 {[%clk 0:01:21.2]} 19. Be3 {[%clk
0:01:50.7]} 19... Bd6 {[%clk 0:01:13.8]} 20. Bxe4 {[%clk 0:01:34.9]} 20... fxe4
{[%clk 0:01:11.5]} 21. Nd2 {[%clk 0:01:35.1]} 21... Qf7 {[%clk 0:01:07.6]} 22.
Rf1 {[%clk 0:01:34.3]} 22... Qg6 {[%clk 0:01:02.2]} 23. Qg4 {[%clk 0:01:31]}
23... Qxg4 {[%clk 0:00:49.6]} 24. hxg4 {[%clk 0:01:31.9]} 24... Rf6 {[%clk
0:00:26.9]} 25. g3 {[%clk 0:01:26.6]} 25... h6 {[%clk 0:00:21]} 26. Kg2 {[%clk
0:01:25.6]} 26... Rg6 {[%clk 0:00:20.2]} 27. g5 {[%clk 0:01:26.1]} 27... hxg5
{[%clk 0:00:19.7]} 28. Rh1+ {[%clk 0:01:26.6]} 28... Kg8 {[%clk 0:00:20.3]} 29.
Rh5 {[%clk 0:01:26.8]} 29... g4 {[%clk 0:00:20.1]} 30. Rah1 {[%clk 0:01:26.4]}
30... Kf7 {[%clk 0:00:19.4]} 31. c4 {[%clk 0:01:25]} 31... Ne7 {[%clk
0:00:09.8]} 32. a3 {[%clk 0:01:22.4]} 32... Nf5 {[%clk 0:00:09.4]} 33. cxd5
{[%clk 0:01:21.3]} 33... Nxe3+ {[%clk 0:00:07.4]} 34. fxe3 {[%clk 0:01:20.8]}
34... exd5 {[%clk 0:00:06.7]} 35. Rxd5 {[%clk 0:01:19.6]} 35... Rc8 {[%clk
0:00:07.2]} 36. Rf1+ {[%clk 0:01:17.5]} 36... Ke7 {[%clk 0:00:06.9]} 37. Nxe4
{[%clk 0:01:16.8]} 37... Rc2+ {[%clk 0:00:07.5]} 38. Rf2 {[%clk 0:01:16.8]}
38... Rxf2+ {[%clk 0:00:07.6]} 39. Kxf2 {[%clk 0:01:16.7]} 39... Re6 {[%clk
0:00:07.1]} 40. Nxd6 {[%clk 0:01:15.8]} 40... Rxd6 {[%clk 0:00:06.2]} 41. Rxd6
{[%clk 0:01:16]} 41... Kxd6 {[%clk 0:00:07.1]} 42. e4 {[%clk 0:01:16.1]} 1-0

[Event "Early-Titled-Tuesday-Blitz-March-05-2024"]
[Site "Chess.com"]
[Date "2024.03.05"]
[Round "4"]
[White "ChessLover0108"]
[Black "SahibSinghKnight"]
[Result "1-0"]
[WhiteElo "2954"]
[BlackElo "2579"]
[TimeControl "180+1"]
[EndTime "8:41:12 PST"]
[Termination "ChessLover0108 won on time"]

1. c4 {[%clk 0:03:00.9]} 1... e6 {[%clk 0:02:59.1]} 2. Nc3 {[%clk 0:02:59.7]}
2... d5 {[%clk 0:02:59.1]} 3. d4 {[%clk 0:02:59.8]} 3... Be7 {[%clk 0:02:52.4]}
4. Nf3 {[%clk 0:02:57.1]} 4... Nf6 {[%clk 0:02:51.8]} 5. Bg5 {[%clk 0:02:57.8]}
5... Nbd7 {[%clk 0:02:50.5]} 6. e3 {[%clk 0:02:58]} 6... h6 {[%clk 0:02:50.6]}
7. Bf4 {[%clk 0:02:57.1]} 7... a6 {[%clk 0:02:45.3]} 8. cxd5 {[%clk 0:02:55.5]}
8... exd5 {[%clk 0:02:38.3]} 9. Bd3 {[%clk 0:02:55]} 9... O-O {[%clk 0:02:37.3]}
10. O-O {[%clk 0:02:54.1]} 10... c6 {[%clk 0:02:36.7]} 11. h3 {[%clk 0:02:54.8]}
11... b5 {[%clk 0:02:33.8]} 12. Rc1 {[%clk 0:02:45.6]} 12... Bb7 {[%clk
0:02:25.1]} 13. Bb1 {[%clk 0:02:45]} 13... Re8 {[%clk 0:02:19.3]} 14. Ne5 {[%clk
0:02:44.2]} 14... Nxe5 {[%clk 0:02:11.5]} 15. dxe5 {[%clk 0:02:45.1]} 15... Nd7
{[%clk 0:02:10.1]} 16. Qg4 {[%clk 0:02:37.3]} 16... Bg5 {[%clk 0:02:01.3]} 17.
Bxg5 {[%clk 0:02:37.4]} 17... hxg5 {[%clk 0:01:58.6]} 18. f4 {[%clk 0:02:37.7]}
18... g6 {[%clk 0:01:33.8]} 19. Ne2 {[%clk 0:02:28.5]} 19... Qe7 {[%clk
0:00:42.6]} 20. h4 {[%clk 0:02:23.9]} 20... gxh4 {[%clk 0:00:38.1]} 21. Nd4
{[%clk 0:02:24.5]} 21... Kf8 {[%clk 0:00:23.2]} 22. Bxg6 {[%clk 0:02:13.6]}
22... fxg6 {[%clk 0:00:17.2]} 23. Qxg6 {[%clk 0:01:58.1]} 23... Qg7 {[%clk
0:00:08.9]} 24. Qh5 {[%clk 0:01:58.2]} 24... Kg8 {[%clk 0:00:06.6]} 25. Nf5
{[%clk 0:01:58.1]} 25... Qh7 {[%clk 0:00:07.1]} 26. Qxh7+ {[%clk 0:01:32.1]}
26... Kxh7 {[%clk 0:00:07.3]} 27. Nd6 {[%clk 0:01:33]} 27... Rab8 {[%clk
0:00:02.9]} 28. Nxb7 {[%clk 0:01:32]} 28... Rxb7 {[%clk 0:00:03.8]} 29. Rxc6
{[%clk 0:01:32.9]} 29... Nb6 {[%clk 0:00:03.8]} 30. Rf3 {[%clk 0:01:31]} 30...
Nc4 {[%clk 0:00:03.9]} 31. b3 {[%clk 0:01:29.1]} 31... Nd2 {[%clk 0:00:02.2]}
32. Rh3 {[%clk 0:01:29.6]} 32... Kg8 {[%clk 0:00:02.7]} 33. Rxh4 {[%clk
0:01:28.1]} 33... Rg7 {[%clk 0:00:03.4]} 34. Rhh6 {[%clk 0:01:16.5]} 34... Nf3+
{[%clk 0:00:03.2]} 35. Kf2 {[%clk 0:01:16.5]} 35... Nd2 {[%clk 0:00:03.2]} 36.
Rcg6 {[%clk 0:01:16]} 36... Ne4+ {[%clk 0:00:04.1]} 37. Kf3 {[%clk 0:01:16.1]}
37... a5 {[%clk 0:00:01.2]} 38. e6 {[%clk 0:01:12.4]} 1-0

[Event "Early-Titled-Tuesday-Blitz-March-05-2024"]
[Site "Chess.com"]
[Date "2024.03.05"]
[Round "4"]
[White "Anton_Demchenko"]
[Black "Semetey"]
[Result "1-0"]
[WhiteElo "2902"]
[BlackElo "2597"]
[TimeControl "180+1"]
[EndTime "8:41:14 PST"]
[Termination "Anton_Demchenko won on time"]

1. e4 {[%clk 0:03:00.9]} 1... e5 {[%clk 0:02:50.7]} 2. Nf3 {[%clk 0:03:00.6]}
2... Nc6 {[%clk 0:02:50.8]} 3. Bc4 {[%clk 0:03:00.2]} 3... Bc5 {[%clk
0:02:49.9]} 4. d3 {[%clk 0:03:00.6]} 4... Nf6 {[%clk 0:02:49.6]} 5. Bg5 {[%clk
0:03:01.3]} 5... h6 {[%clk 0:02:49.1]} 6. Bh4 {[%clk 0:03:01.9]} 6... Be7 {[%clk
0:02:48.2]} 7. Bg3 {[%clk 0:03:02.5]} 7... d6 {[%clk 0:02:47.6]} 8. a4 {[%clk
0:03:03.2]} 8... Bg4 {[%clk 0:02:41.8]} 9. h3 {[%clk 0:03:01.9]} 9... Bh5 {[%clk
0:02:41.9]} 10. c3 {[%clk 0:03:01.3]} 10... a6 {[%clk 0:02:34.9]} 11. Nbd2
{[%clk 0:03:00.8]} 11... O-O {[%clk 0:02:26.9]} 12. a5 {[%clk 0:02:52.6]} 12...
Nh7 {[%clk 0:02:21.1]} 13. Bh2 {[%clk 0:02:48.1]} 13... Bxf3 {[%clk 0:02:13.9]}
14. Nxf3 {[%clk 0:02:47.9]} 14... Kh8 {[%clk 0:02:13.2]} 15. Qb3 {[%clk
0:02:44.7]} 15... Qe8 {[%clk 0:01:33.5]} 16. Qxb7 {[%clk 0:02:43.4]} 16... Ra7
{[%clk 0:01:33.1]} 17. Qb3 {[%clk 0:02:43]} 17... f5 {[%clk 0:01:30.8]} 18. exf5
{[%clk 0:02:38.9]} 18... Rxf5 {[%clk 0:01:30.2]} 19. Be6 {[%clk 0:02:30.8]}
19... Rf6 {[%clk 0:01:24.7]} 20. Bd5 {[%clk 0:02:25]} 20... Rf8 {[%clk
0:01:07.7]} 21. O-O {[%clk 0:02:21.3]} 21... Nf6 {[%clk 0:01:06.1]} 22. Bc4
{[%clk 0:02:05.4]} 22... Nh5 {[%clk 0:00:53.5]} 23. Qd1 {[%clk 0:01:57.4]} 23...
Nf4 {[%clk 0:00:50.2]} 24. Bxf4 {[%clk 0:01:57]} 24... Rxf4 {[%clk 0:00:51.1]}
25. b4 {[%clk 0:01:50.1]} 25... Nb8 {[%clk 0:00:23.2]} 26. Qe2 {[%clk
0:01:47.4]} 26... Qd7 {[%clk 0:00:21.5]} 27. Rfe1 {[%clk 0:01:41.3]} 27... Bf6
{[%clk 0:00:19.4]} 28. Qe3 {[%clk 0:01:30.3]} 28... c6 {[%clk 0:00:17.5]} 29. d4
{[%clk 0:01:27.5]} 29... Rf5 {[%clk 0:00:04]} 30. Bd3 {[%clk 0:01:25.5]} 30...
Rh5 {[%clk 0:00:03.5]} 31. Bg6 {[%clk 0:01:23.6]} 31... Rg5 {[%clk 0:00:03]} 32.
Nxg5 {[%clk 0:01:22.3]} 32... Bxg5 {[%clk 0:00:03.9]} 33. Qf3 {[%clk 0:01:20.7]}
33... Bf6 {[%clk 0:00:03.8]} 34. dxe5 {[%clk 0:01:19.9]} 34... dxe5 {[%clk
0:00:03.8]} 35. Rad1 {[%clk 0:01:19.8]} 35... Qe7 {[%clk 0:00:04.2]} 36. Be4
{[%clk 0:01:15.6]} 36... Rc7 {[%clk 0:00:03.4]} 37. Qf5 {[%clk 0:01:15.8]} 37...
Kg8 {[%clk 0:00:02.8]} 38. Qh7+ {[%clk 0:01:15.5]} 38... Kf8 {[%clk 0:00:02.6]}
39. Qh8+ {[%clk 0:01:14.7]} 39... Kf7 {[%clk 0:00:02.9]} 40. Qxb8 {[%clk
0:01:15.4]} 1-0

[Event "Early-Titled-Tuesday-Blitz-March-05-2024"]
[Site "Chess.com"]
[Date "2024.03.05"]
[Round "4"]
[White "Shuvalov"]
[Black "Lennis93"]
[Result "1-0"]
[WhiteElo "2546"]
[BlackElo "2708"]
[TimeControl "180+1"]
[EndTime "8:41:18 PST"]
[Termination "Shuvalov won by resignation"]

1. d4 {[%clk 0:03:00.9]} 1... g6 {[%clk 0:02:52.3]} 2. c4 {[%clk 0:03:00.4]}
2... Bg7 {[%clk 0:02:52.6]} 3. e4 {[%clk 0:03:00.6]} 3... d6 {[%clk 0:02:52.6]}
4. Nc3 {[%clk 0:02:59.5]} 4... Nc6 {[%clk 0:02:50.7]} 5. Be3 {[%clk 0:02:56.5]}
5... e5 {[%clk 0:02:51]} 6. d5 {[%clk 0:02:54.3]} 6... Nd4 {[%clk 0:02:50.9]} 7.
Nge2 {[%clk 0:02:47.2]} 7... c5 {[%clk 0:02:50.4]} 8. dxc6 {[%clk 0:02:45.9]}
8... bxc6 {[%clk 0:02:50.5]} 9. Nxd4 {[%clk 0:02:44.5]} 9... exd4 {[%clk
0:02:51]} 10. Bxd4 {[%clk 0:02:45.3]} 10... Nf6 {[%clk 0:02:51.3]} 11. Be2
{[%clk 0:02:37.7]} 11... O-O {[%clk 0:02:51]} 12. O-O {[%clk 0:02:36.5]} 12...
Re8 {[%clk 0:02:51.3]} 13. Bf3 {[%clk 0:02:19.9]} 13... Rb8 {[%clk 0:02:36.8]}
14. Rb1 {[%clk 0:02:15]} 14... Be6 {[%clk 0:02:30.5]} 15. b3 {[%clk 0:02:06.4]}
15... Qa5 {[%clk 0:02:23.1]} 16. Rc1 {[%clk 0:01:28.5]} 16... Rbd8 {[%clk
0:02:11.1]} 17. Na4 {[%clk 0:01:12.9]} 17... c5 {[%clk 0:01:44.2]} 18. Bc3
{[%clk 0:01:11.4]} 18... Qc7 {[%clk 0:01:38.7]} 19. Qd2 {[%clk 0:01:06.5]} 19...
h5 {[%clk 0:01:36.2]} 20. Ba5 {[%clk 0:01:05]} 20... Qe7 {[%clk 0:01:27.9]} 21.
Bxd8 {[%clk 0:01:04.9]} 21... Rxd8 {[%clk 0:01:28.8]} 22. Nc3 {[%clk 0:01:01.7]}
22... Kh7 {[%clk 0:01:25.9]} 23. Rcd1 {[%clk 0:01:01]} 23... Bh6 {[%clk
0:01:23.5]} 24. Qc2 {[%clk 0:00:59]} 24... Ng4 {[%clk 0:01:23.2]} 25. Bxg4
{[%clk 0:00:56.4]} 25... hxg4 {[%clk 0:01:24.1]} 26. Nd5 {[%clk 0:00:54.2]}
26... Qh4 {[%clk 0:01:24]} 27. g3 {[%clk 0:00:50.1]} 27... Qh3 {[%clk
0:01:22.5]} 28. Qc3 {[%clk 0:00:36.4]} 28... Bxd5 {[%clk 0:01:22.8]} 29. Rxd5
{[%clk 0:00:32]} 29... Bg7 {[%clk 0:01:20.3]} 30. Qd2 {[%clk 0:00:29.7]} 30...
Rh8 {[%clk 0:01:02.2]} 31. f4 {[%clk 0:00:20.6]} 31... Re8 {[%clk 0:00:39.2]}
32. Re1 {[%clk 0:00:18.2]} 32... Bf8 {[%clk 0:00:37.4]} 33. Re2 {[%clk
0:00:17.9]} 33... Qh5 {[%clk 0:00:36.8]} 34. Rxh5+ {[%clk 0:00:17.2]} 1-0

[Event "Early-Titled-Tuesday-Blitz-March-05-2024"]
[Site "Chess.com"]
[Date "2024.03.05"]
[Round "4"]
[White "ccccvhhhj"]
[Black "DarZay"]
[Result "0-1"]
[WhiteElo "2481"]
[BlackElo "2333"]
[TimeControl "180+1"]
[EndTime "8:41:18 PST"]
[Termination "DarZay won on time"]

1. d4 {[%clk 0:02:56.6]} 1... d5 {[%clk 0:02:59]} 2. Nc3 {[%clk 0:02:55]} 2...
Nf6 {[%clk 0:02:52.6]} 3. Bf4 {[%clk 0:02:55.3]} 3... e6 {[%clk 0:02:51.6]} 4.
f3 {[%clk 0:02:53.8]} 4... c5 {[%clk 0:02:50.7]} 5. e3 {[%clk 0:02:51.6]} 5...
Nc6 {[%clk 0:02:46.9]} 6. Qd2 {[%clk 0:02:47.9]} 6... Qb6 {[%clk 0:02:39.2]} 7.
O-O-O {[%clk 0:02:45.9]} 7... cxd4 {[%clk 0:02:38.7]} 8. exd4 {[%clk 0:02:46.8]}
8... Bb4 {[%clk 0:02:38]} 9. g4 {[%clk 0:02:33.3]} 9... Bd7 {[%clk 0:02:35.5]}
10. h4 {[%clk 0:02:32.5]} 10... Rc8 {[%clk 0:02:27.8]} 11. a3 {[%clk 0:02:22.4]}
11... Bxc3 {[%clk 0:02:21.6]} 12. Qxc3 {[%clk 0:02:22.6]} 12... Na5 {[%clk
0:02:17]} 13. Qe3 {[%clk 0:01:47]} 13... Ba4 {[%clk 0:02:10]} 14. Rh2 {[%clk
0:01:40.9]} 14... Nc4 {[%clk 0:02:02.3]} 15. Bxc4 {[%clk 0:01:40.9]} 15... dxc4
{[%clk 0:02:00.7]} 16. Qe5 {[%clk 0:00:43.1]} 16... c3 {[%clk 0:01:48.2]} 17. b3
{[%clk 0:00:36.8]} 17... Nd5 {[%clk 0:01:42.5]} 18. Qxg7 {[%clk 0:00:23.7]}
18... Rf8 {[%clk 0:01:41.3]} 19. Bh6 {[%clk 0:00:23]} 19... Kd7 {[%clk
0:01:37.5]} 20. Qxf8 {[%clk 0:00:04.4]} 20... Rxf8 {[%clk 0:01:35.9]} 21. Bxf8
{[%clk 0:00:05.3]} 21... Bb5 {[%clk 0:00:45.7]} 22. Bc5 {[%clk 0:00:05.1]} 22...
Qa5 {[%clk 0:00:44]} 23. a4 {[%clk 0:00:02.7]} 23... b6 {[%clk 0:00:43]} 24. Ba3
{[%clk 0:00:01.6]} 24... Bxa4 {[%clk 0:00:41.2]} 25. b4 {[%clk 0:00:01.8]} 25...
Nxb4 {[%clk 0:00:40.2]} 26. Ne2 {[%clk 0:00:02.2]} 26... Nxc2 {[%clk 0:00:34.8]}
0-1

[Event "Early-Titled-Tuesday-Blitz-March-05-2024"]
[Site "Chess.com"]
[Date "2024.03.05"]
[Round "4"]
[White "FischerKasparow"]
[Black "aridannie"]
[Result "1/2-1/2"]
[WhiteElo "2079"]
[BlackElo "2352"]
[TimeControl "180+1"]
[EndTime "8:41:20 PST"]
[Termination "Game drawn by agreement"]

1. e4 {[%clk 0:02:29.5]} 1... e6 {[%clk 0:02:55.1]} 2. d4 {[%clk 0:02:29.3]}
2... d5 {[%clk 0:02:54.9]} 3. Bd3 {[%clk 0:02:29.7]} 3... dxe4 {[%clk
0:02:53.1]} 4. Bxe4 {[%clk 0:02:30.6]} 4... Nf6 {[%clk 0:02:52.1]} 5. Bf3 {[%clk
0:02:31.1]} 5... c5 {[%clk 0:02:50.7]} 6. Ne2 {[%clk 0:02:31.6]} 6... Nc6 {[%clk
0:02:47.4]} 7. Be3 {[%clk 0:02:31.9]} 7... Nd5 {[%clk 0:02:44.8]} 8. Bxd5 {[%clk
0:02:22.3]} 8... Qxd5 {[%clk 0:02:45.7]} 9. O-O {[%clk 0:02:19.2]} 9... cxd4
{[%clk 0:02:40.7]} 10. Nxd4 {[%clk 0:02:17.7]} 10... Nxd4 {[%clk 0:02:35.8]} 11.
Qxd4 {[%clk 0:02:16.8]} 11... Qxd4 {[%clk 0:02:34.9]} 12. Bxd4 {[%clk
0:02:17.7]} 12... b6 {[%clk 0:02:31.1]} 13. Nc3 {[%clk 0:02:12.2]} 13... Bd7
{[%clk 0:02:30.5]} 14. Rad1 {[%clk 0:02:09.4]} 14... f6 {[%clk 0:02:26.6]} 15.
f3 {[%clk 0:02:07.6]} 15... O-O-O {[%clk 0:02:21.9]} 16. Kf2 {[%clk 0:01:59.8]}
16... Bc6 {[%clk 0:02:20.5]} 17. Be3 {[%clk 0:01:59]} 17... Bb4 {[%clk
0:02:14.6]} 18. Ne4 {[%clk 0:01:51.3]} 18... e5 {[%clk 0:02:10]} 19. a3 {[%clk
0:01:45.2]} 19... Be7 {[%clk 0:02:08.2]} 20. Nc3 {[%clk 0:01:39.5]} 20... f5
{[%clk 0:02:00.7]} 21. Rxd8+ {[%clk 0:01:38.6]} 21... Rxd8 {[%clk 0:01:58.7]}
22. Rd1 {[%clk 0:01:38.6]} 22... Rxd1 {[%clk 0:01:48.1]} 23. Nxd1 {[%clk
0:01:38]} 23... f4 {[%clk 0:01:45.8]} 24. Bd2 {[%clk 0:01:37.9]} 24... Bc5+
{[%clk 0:01:45.6]} 25. Ke1 {[%clk 0:01:35.2]} 25... Bg1 {[%clk 0:01:42.5]} 26.
h3 {[%clk 0:01:32.5]} 26... Kd7 {[%clk 0:01:38.1]} 27. Nf2 {[%clk 0:01:31.9]}
27... Ke6 {[%clk 0:01:33.7]} 28. c4 {[%clk 0:01:25.1]} 28... h6 {[%clk 0:01:28]}
29. Bc3 {[%clk 0:01:16.9]} 29... Bxf2+ {[%clk 0:01:17.3]} 30. Kxf2 {[%clk
0:01:16.3]} 30... Kf5 {[%clk 0:01:15.5]} 31. b4 {[%clk 0:01:12.9]} 31... g5
{[%clk 0:01:13.6]} 32. b5 {[%clk 0:01:09.6]} 32... Bb7 {[%clk 0:01:12.6]} 33.
Bb4 {[%clk 0:01:08.4]} 33... e4 {[%clk 0:01:08.5]} 34. fxe4+ {[%clk 0:01:08]}
34... Bxe4 {[%clk 0:01:07.9]} 35. c5 {[%clk 0:01:08.3]} 35... bxc5 {[%clk
0:01:05.2]} 36. Bxc5 {[%clk 0:01:08.1]} 36... Bd3 {[%clk 0:01:04.7]} 37. a4
{[%clk 0:01:07.5]} 37... Bc2 {[%clk 0:01:02.7]} 38. Bxa7 {[%clk 0:01:05.6]}
38... Bxa4 {[%clk 0:01:01.8]} 39. b6 {[%clk 0:01:05.7]} 39... Bc6 {[%clk
0:01:01.9]} 40. Bb8 {[%clk 0:01:05.5]} 40... h5 {[%clk 0:00:58.6]} 41. Bd6
{[%clk 0:01:03]} 41... Ke4 {[%clk 0:00:55.9]} 42. Be7 {[%clk 0:01:00.6]} 42...
g4 {[%clk 0:00:55.6]} 43. hxg4 {[%clk 0:01:00.4]} 43... hxg4 {[%clk 0:00:56.5]}
44. Bd6 {[%clk 0:00:59.2]} 44... g3+ {[%clk 0:00:52.8]} 45. Kg1 {[%clk
0:00:57.2]} 45... Ke3 {[%clk 0:00:51.8]} 46. Bc7 {[%clk 0:00:56.8]} 46... Ke4
{[%clk 0:00:36.1]} 47. Bd6 {[%clk 0:00:56.1]} 47... Kf5 {[%clk 0:00:35.6]} 48.
Bc7 {[%clk 0:00:56]} 48... Kg4 {[%clk 0:00:35.7]} 49. Bd6 {[%clk 0:00:56.1]}
49... f3 {[%clk 0:00:34.2]} 50. gxf3+ {[%clk 0:00:55.3]} 50... Kxf3 {[%clk
0:00:34.2]} 51. Bc7 {[%clk 0:00:54.4]} 1/2-1/2

[Event "Early-Titled-Tuesday-Blitz-March-05-2024"]
[Site "Chess.com"]
[Date "2024.03.05"]
[Round "4"]
[White "stollenmonster"]
[Black "Iskusnyh"]
[Result "1-0"]
[WhiteElo "2901"]
[BlackElo "2696"]
[TimeControl "180+1"]
[EndTime "8:41:21 PST"]
[Termination "stollenmonster won on time"]

1. e4 {[%clk 0:03:00.9]} 1... e6 {[%clk 0:02:59.5]} 2. Nc3 {[%clk 0:03:00.5]}
2... d5 {[%clk 0:02:58.7]} 3. g3 {[%clk 0:03:01.4]} 3... Nf6 {[%clk 0:02:55]} 4.
Bg2 {[%clk 0:03:01.3]} 4... Be7 {[%clk 0:02:42.9]} 5. Nge2 {[%clk 0:03:00.8]}
5... O-O {[%clk 0:02:40.7]} 6. d4 {[%clk 0:02:58.3]} 6... c5 {[%clk 0:02:37.4]}
7. exd5 {[%clk 0:02:55.4]} 7... exd5 {[%clk 0:02:35.4]} 8. O-O {[%clk
0:02:55.9]} 8... Nc6 {[%clk 0:02:34.5]} 9. h3 {[%clk 0:02:55.3]} 9... h6 {[%clk
0:01:52.9]} 10. Be3 {[%clk 0:02:45.9]} 10... cxd4 {[%clk 0:01:40.7]} 11. Nxd4
{[%clk 0:02:46.8]} 11... Ne5 {[%clk 0:01:40.5]} 12. Bf4 {[%clk 0:02:36.7]} 12...
Ng6 {[%clk 0:01:31.5]} 13. Be3 {[%clk 0:02:33.7]} 13... Ne5 {[%clk 0:01:31.3]}
14. Re1 {[%clk 0:02:29.1]} 14... Nc4 {[%clk 0:01:29]} 15. Bc1 {[%clk 0:02:29.4]}
15... a6 {[%clk 0:01:27.2]} 16. Qd3 {[%clk 0:02:23.5]} 16... Re8 {[%clk
0:01:17.9]} 17. Nxd5 {[%clk 0:02:09.4]} 17... Nxd5 {[%clk 0:01:01.5]} 18. Qxc4
{[%clk 0:02:08.6]} 18... Nb6 {[%clk 0:00:42.6]} 19. Qd3 {[%clk 0:02:08.5]} 19...
Bf6 {[%clk 0:00:38.9]} 20. Rxe8+ {[%clk 0:02:05.4]} 20... Qxe8 {[%clk
0:00:39.8]} 21. Bf4 {[%clk 0:01:49.7]} 21... Na4 {[%clk 0:00:35.8]} 22. Rb1
{[%clk 0:01:30.3]} 22... Be6 {[%clk 0:00:34.9]} 23. Nxe6 {[%clk 0:01:26.9]}
23... Qxe6 {[%clk 0:00:34.8]} 24. Qb3 {[%clk 0:01:20.9]} 24... Nc5 {[%clk
0:00:25.3]} 25. Qxe6 {[%clk 0:01:08.6]} 25... Nxe6 {[%clk 0:00:26.2]} 26. Be3
{[%clk 0:01:06.1]} 26... Rc8 {[%clk 0:00:24.8]} 27. c3 {[%clk 0:00:55]} 27...
Rc7 {[%clk 0:00:23.6]} 28. a4 {[%clk 0:00:54.9]} 28... Nc5 {[%clk 0:00:22.8]}
29. a5 {[%clk 0:00:54]} 29... Nb3 {[%clk 0:00:21.2]} 30. Rd1 {[%clk 0:00:50]}
30... g5 {[%clk 0:00:18.8]} 31. Bb6 {[%clk 0:00:50.2]} 31... Re7 {[%clk
0:00:18]} 32. Bd8 {[%clk 0:00:49.6]} 32... Re6 {[%clk 0:00:17.8]} 33. Bd5 {[%clk
0:00:49.9]} 33... Rd6 {[%clk 0:00:02.5]} 34. Bxf6 {[%clk 0:00:49.7]} 1-0

[Event "Early-Titled-Tuesday-Blitz-March-05-2024"]
[Site "Chess.com"]
[Date "2024.03.05"]
[Round "4"]
[White "stolencandy13"]
[Black "Sjakkerntobi"]
[Result "1-0"]
[WhiteElo "2672"]
[BlackElo "2471"]
[TimeControl "180+1"]
[EndTime "8:41:23 PST"]
[Termination "stolencandy13 won by resignation"]

1. d4 {[%clk 0:03:00.9]} 1... Nf6 {[%clk 0:02:59.6]} 2. Bf4 {[%clk 0:03:00.8]}
2... d5 {[%clk 0:02:59.5]} 3. e3 {[%clk 0:03:01.2]} 3... e6 {[%clk 0:03:00]} 4.
Nf3 {[%clk 0:03:01.1]} 4... Bd6 {[%clk 0:03:00.6]} 5. Bg3 {[%clk 0:02:59.4]}
5... O-O {[%clk 0:03:00.4]} 6. Ne5 {[%clk 0:02:56]} 6... Ne4 {[%clk 0:02:46.3]}
7. Nd2 {[%clk 0:02:52.3]} 7... f6 {[%clk 0:02:45.8]} 8. Nxe4 {[%clk 0:02:47.1]}
8... dxe4 {[%clk 0:02:44.4]} 9. Nc4 {[%clk 0:02:45.3]} 9... Be7 {[%clk
0:02:36.8]} 10. c3 {[%clk 0:02:41.5]} 10... c5 {[%clk 0:02:29.8]} 11. Qc2 {[%clk
0:02:31]} 11... cxd4 {[%clk 0:01:56.3]} 12. exd4 {[%clk 0:02:21.5]} 12... f5
{[%clk 0:01:51.9]} 13. Be5 {[%clk 0:01:54.7]} 13... Nc6 {[%clk 0:01:50.4]} 14.
Be2 {[%clk 0:01:50.2]} 14... b5 {[%clk 0:01:48]} 15. Ne3 {[%clk 0:01:42.1]}
15... f4 {[%clk 0:01:23.9]} 16. Ng4 {[%clk 0:01:04.1]} 16... Nxe5 {[%clk
0:00:51]} 17. Nxe5 {[%clk 0:01:05]} 17... Bb7 {[%clk 0:00:51]} 18. Bxb5 {[%clk
0:01:04]} 18... e3 {[%clk 0:00:43.5]} 19. Bc6 {[%clk 0:01:00.7]} 19... Qc7
{[%clk 0:00:24.8]} 20. Bxb7 {[%clk 0:00:55.1]} 20... Qxb7 {[%clk 0:00:25.7]} 21.
O-O {[%clk 0:00:42.1]} 21... Rab8 {[%clk 0:00:23.3]} 22. fxe3 {[%clk 0:00:38.2]}
22... fxe3 {[%clk 0:00:19.3]} 23. Rxf8+ {[%clk 0:00:37.3]} 23... Rxf8 {[%clk
0:00:20]} 24. Rf1 {[%clk 0:00:35.3]} 24... Rxf1+ {[%clk 0:00:14]} 25. Kxf1
{[%clk 0:00:36.2]} 25... Bg5 {[%clk 0:00:11.6]} 26. Qb3 {[%clk 0:00:30.7]} 26...
Qa6+ {[%clk 0:00:06.2]} 27. Qc4 {[%clk 0:00:25.8]} 27... Qd6 {[%clk 0:00:06.4]}
28. Qc8+ {[%clk 0:00:24]} 28... Qd8 {[%clk 0:00:06.3]} 29. Qxd8+ {[%clk
0:00:23.8]} 29... Bxd8 {[%clk 0:00:07.2]} 1-0